fUSD/lending_fUSD_20260506
["ID","MTS","AMOUNT","RATE_DAILY","PERIOD"]
[421656796,1778033440000,-500.0,0.00014699,2]
[421656806,1778033440000,-531.418983,0.00014699,2]
[421656812,1778033440000,-531.418983,0.00014699,2]
[421656810,1778033440000,-531.418983,0.00014699,2]
[421656800,1778033440000,-500.0,0.00014699,2]
[421656814,1778033440000,-151.0,0.00014699,2]
[421656809,1778033440000,-531.418983,0.00014699,2]
[421656798,1778033440000,-500.0,0.00014699,2]
[421656802,1778033440000,-512.34278439,0.00014699,2]
[421656896,1778033441000,-397.0,0.00014781,2]
[421656898,1778033441000,-397.0,0.00014783,2]
[421656900,1778033441000,-397.0,0.00014795,2]
[421656902,1778033441000,-823.09082227,0.000148,2]
[421656906,1778033441000,-1165.45033526,0.000148,2]
[421656924,1778033441000,-1980.58075856,0.000148,2]
[421656919,1778033441000,-31578.55386571,0.000148,2]
[421656922,1778033441000,-42369.92741789,0.000148,2]
[421656937,1778033441000,-26.29126763,0.000148,2]
[421656876,1778033441000,-397.0,0.00014736,2]
[421656954,1778033441000,-9642.15641951,0.000148,2]
[421656904,1778033441000,-380.52932165,0.000148,2]
[421656883,1778033441000,-397.0,0.00014745,2]
[421656868,1778033441000,-504.444282,0.00014726,2]
[421656878,1778033441000,-397.0,0.00014743,2]
[421656881,1778033441000,-397.0,0.00014744,2]
[421656891,1778033441000,-397.0,0.00014771,2]
[421656887,1778033441000,-150.0,0.00014756,2]
[421656889,1778033441000,-397.0,0.0001477,2]
[421656874,1778033441000,-504.444282,0.00014726,2]
[421656872,1778033441000,-504.444282,0.00014726,2]
[421656864,1778033441000,-151.0,0.00014726,2]
[421656861,1778033441000,-397.0,0.00014726,2]
[421656866,1778033441000,-151.0,0.00014726,2]
[421656870,1778033441000,-504.444282,0.00014726,2]
[421656863,1778033441000,-151.0,0.00014726,2]
[421656956,1778033441000,-713.67957342,0.000148,2]
[421656894,1778033441000,-397.0,0.00014779,2]
[421656952,1778033441000,-151.0,0.00014699,2]
[421656885,1778033441000,-397.0,0.00014749,2]
[421656994,1778033441000,-397.0,0.0001481,2]
[421657012,1778033441000,-150.0,0.00014871,2]
[421657013,1778033441000,-397.0,0.00014872,2]
[421657014,1778033441000,-887.50683816,0.00014876,2]
[421657010,1778033441000,-397.0,0.0001487,2]
[421657011,1778033441000,-397.0,0.0001487,2]
[421657008,1778033441000,-397.0,0.00014863,2]
[421657007,1778033441000,-397.0,0.00014862,2]
[421657006,1778033441000,-397.0,0.00014858,2]
[421657009,1778033441000,-397.0,0.00014869,2]
[421657005,1778033441000,-397.0,0.00014853,2]
[421657002,1778033441000,-1511.14072,0.0001485,2]
[421657003,1778033441000,-1511.14073,0.0001485,2]
[421657000,1778033441000,-151.0,0.0001485,2]
[421656997,1778033441000,-151.0,0.0001485,2]
[421656998,1778033441000,-151.0,0.0001485,2]
[421657004,1778033441000,-1511.14073,0.0001485,2]
[421656987,1778033441000,-391359.52564796,0.000148,2]
[421656986,1778033441000,-1902.4269139,0.000148,2]
[421656989,1778033441000,-889.39,0.000148,2]
[421656991,1778033441000,-397.0,0.00014801,2]
[421656988,1778033441000,-54062.16564052,0.000148,2]
[421656995,1778033441000,-397.0,0.00014844,2]
[421656950,1778033441000,-151.0,0.00014021,2]
[421656992,1778033441000,-397.0,0.00014803,2]
[421656990,1778033441000,-1400.0,0.000148,5]
[421656996,1778033441000,-397.0,0.00014845,2]
[421656999,1778033441000,-151.0,0.0001485,2]
[421657001,1778033441000,-152.845418,0.0001485,2]
[421656993,1778033441000,-397.0,0.00014806,2]
[421657061,1778033442000,-168.75516773,0.0001497,2]
[421657066,1778033442000,-397.0,0.00014981,2]
[421657063,1778033442000,-10108.6509361,0.00014973,2]
[421657065,1778033442000,-397.0,0.00014979,2]
[421657057,1778033442000,-397.0,0.00014946,2]
[421657062,1778033442000,-397.0,0.00014971,2]
[421657058,1778033442000,-397.0,0.00014948,2]
[421657056,1778033442000,-397.0,0.0001493,2]
[421657048,1778033442000,-433.35631466,0.00014902,2]
[421657052,1778033442000,-397.0,0.00014908,2]
[421657050,1778033442000,-397.0,0.00014904,2]
[421657059,1778033442000,-397.0,0.00014949,2]
[421657042,1778033442000,-4927.4593,0.000149,2]
[421657074,1778033442000,-156.47991519,0.00014986,2]
[421657060,1778033442000,-4003.0,0.00014959,2]
[421657069,1778033442000,-906.04,0.00014985,2]
[421657064,1778033442000,-397.0,0.00014974,2]
[421657082,1778033442000,-1000.0,0.00014999,2]
[421657071,1778033442000,-155.19326329,0.00014986,2]
[421657081,1778033442000,-1000.0,0.00014999,2]
[421657070,1778033442000,-152.91310528,0.00014986,2]
[421657072,1778033442000,-151.87006581,0.00014986,2]
[421657073,1778033442000,-155.7928226,0.00014986,2]
[421657078,1778033442000,-609.51451129,0.0001499,2]
[421657077,1778033442000,-397.0,0.00014988,2]
[421657076,1778033442000,-177.373168,0.00014986,2]
[421657045,1778033442000,-320.4570759,0.000149,2]
[421657068,1778033442000,-397.0,0.00014983,2]
[421657049,1778033442000,-397.0,0.00014904,2]
[421657039,1778033442000,-624.0,0.000149,2]
[421657046,1778033442000,-1841.02062056,0.000149,2]
[421657021,1778033442000,-275.0,0.000149,2]
[421657023,1778033442000,-173.472,0.000149,2]
[421657025,1778033442000,-151.143,0.000149,2]
[421657015,1778033442000,-397.0,0.00014878,2]
[421657018,1778033442000,-397.0,0.00014897,2]
[421657019,1778033442000,-193.96,0.00014898,2]
[421657017,1778033442000,-397.0,0.00014891,2]
[421657016,1778033442000,-397.0,0.00014888,2]
[421657020,1778033442000,-150.0,0.000149,2]
[421657026,1778033442000,-164.734,0.000149,2]
[421657028,1778033442000,-150.0,0.000149,2]
[421657031,1778033442000,-166.624,0.000149,2]
[421657029,1778033442000,-194.277,0.000149,2]
[421657037,1778033442000,-925.0,0.000149,2]
[421657033,1778033442000,-284.164,0.000149,2]
[421657038,1778033442000,-1352.0,0.000149,2]
[421657075,1778033442000,-158.45897905,0.00014986,2]
[421657032,1778033442000,-176.593,0.000149,2]
[421657035,1778033442000,-243.041,0.000149,2]
[421657036,1778033442000,-3536.0,0.000149,2]
[421657034,1778033442000,-183.0,0.000149,2]
[421657040,1778033442000,-150.322,0.000149,2]
[421657041,1778033442000,-173.66265987,0.000149,2]
[421657043,1778033442000,-795.66307282,0.000149,2]
[421657053,1778033442000,-397.0,0.00014909,2]
[421657054,1778033442000,-397.0,0.00014921,2]
[421657055,1778033442000,-397.0,0.00014925,2]
[421657051,1778033442000,-397.0,0.00014906,2]
[421657047,1778033442000,-180.37279636,0.000149,2]
[421657044,1778033442000,-1900.0,0.000149,5]
[421657079,1778033442000,-397.0,0.00014992,2]
[421657067,1778033442000,-397.0,0.00014983,2]
[421657084,1778033442000,-300.0,0.00014999,2]
[421657121,1778033442000,-1511.14073,0.00015,2]
[421657119,1778033442000,-1511.14073,0.00015,2]
[421657118,1778033442000,-155.109366,0.00015,2]
[421657117,1778033442000,-151.0,0.00015,2]
[421657120,1778033442000,-1511.14073,0.00015,2]
[421657127,1778033442000,-203.504369,0.00015,2]
[421657122,1778033442000,-151.0,0.00015,2]
[421657123,1778033442000,-151.0,0.00015,2]
[421657128,1778033442000,-504.444282,0.00015,2]
[421657124,1778033442000,-151.0,0.00015,2]
[421657125,1778033442000,-151.0,0.00015,2]
[421657126,1778033442000,-151.0,0.00015,2]
[421657140,1778033442000,-531.418983,0.00015,2]
[421657142,1778033442000,-531.418983,0.00015,2]
[421657141,1778033442000,-531.418983,0.00015,2]
[421657137,1778033442000,-531.418983,0.00015,2]
[421657135,1778033442000,-504.444282,0.00015,2]
[421657129,1778033442000,-504.444282,0.00015,2]
[421657138,1778033442000,-531.418983,0.00015,2]
[421657131,1778033442000,-504.444282,0.00015,2]
[421657139,1778033442000,-531.418983,0.00015,2]
[421657134,1778033442000,-504.444282,0.00015,2]
[421657132,1778033442000,-504.444282,0.00015,2]
[421657133,1778033442000,-504.444282,0.00015,2]
[421657136,1778033442000,-531.418983,0.00015,2]
[421657145,1778033442000,-167.25042268,0.00015,2]
[421657143,1778033442000,-531.418983,0.00015,2]
[421657144,1778033442000,-153.72793,0.00015,2]
[421657080,1778033442000,-235.01152392,0.00014999,2]
[421657116,1778033442000,-410.130107,0.00015,2]
[421657113,1778033442000,-151.0,0.00015,2]
[421657130,1778033442000,-504.444282,0.00015,2]
[421657111,1778033442000,-410.130107,0.00015,2]
[421657107,1778033442000,-410.130107,0.00015,2]
[421657085,1778033442000,-666.0,0.00014999,2]
[421657086,1778033442000,-300.0,0.00014999,2]
[421657089,1778033442000,-295.90885131,0.00014999,2]
[421657090,1778033442000,-300.0,0.00014999,2]
[421657088,1778033442000,-300.0,0.00014999,2]
[421657091,1778033442000,-739.0,0.00015,5]
[421657087,1778033442000,-300.0,0.00014999,2]
[421657092,1778033442000,-1647723.52801261,0.00015,2]
[421657095,1778033442000,-2283.70672818,0.00015,7]
[421657097,1778033442000,-151.0,0.00015,2]
[421657096,1778033442000,-151.0,0.00015,2]
[421657093,1778033442000,-744.82,0.00015,2]
[421657094,1778033442000,-375757.28966135,0.00015,2]
[421657099,1778033442000,-151.0,0.00015,2]
[421657083,1778033442000,-181.09474138,0.00014999,2]
[421657098,1778033442000,-151.0,0.00015,2]
[421657101,1778033442000,-151.0,0.00015,2]
[421657108,1778033442000,-410.130107,0.00015,2]
[421657110,1778033442000,-766.01128409,0.00015,2]
[421657109,1778033442000,-1000.0,0.00015,2]
[421657106,1778033442000,-410.130107,0.00015,2]
[421657105,1778033442000,-410.130107,0.00015,2]
[421657112,1778033442000,-410.130107,0.00015,2]
[421657115,1778033442000,-151.0,0.00015,2]
[421657104,1778033442000,-158.282231,0.00015,2]
[421657114,1778033442000,-410.130107,0.00015,2]
[421657100,1778033442000,-151.0,0.00015,2]
[421657102,1778033442000,-151.0,0.00015,2]
[421657103,1778033442000,-282.571598,0.00015,2]
[421657189,1778033443000,-4928.82205121,0.00016103,2]
[421657185,1778033443000,-150.0,0.00016,2]
[421657187,1778033443000,-372.98397525,0.00016,2]
[421657186,1778033443000,-300.0,0.00016,2]
[421657178,1778033443000,-307.01808667,0.000157,2]
[421657184,1778033443000,-2000.0,0.00015961,2]
[421657191,1778033443000,-152.0,0.00016139,3]
[421657183,1778033443000,-150.0,0.00015912,2]
[421657180,1778033443000,-165.81,0.00015784,2]
[421657192,1778033443000,-350.0,0.00016164,2]
[421657181,1778033443000,-374.11541648,0.00015843,2]
[421657190,1778033443000,-160.91,0.00016135,2]
[421657182,1778033443000,-908.2,0.00015871,2]
[421657188,1778033443000,-150.0,0.00016057,2]
[421657194,1778033443000,-16447.83557508,0.00016257,2]
[421657195,1778033443000,-683.4674271,0.00016268,2]
[421657196,1778033443000,-801.0,0.0001629,2]
[421657199,1778033443000,-666.0,0.00016437,2]
[421657197,1778033443000,-887.0,0.0001629,2]
[421657204,1778033443000,-500.0,0.00016438,2]
[421657198,1778033443000,-300.0,0.00016437,2]
[421657202,1778033443000,-414.74,0.00016438,5]
[421657201,1778033443000,-1786.0,0.00016438,2]
[421657203,1778033443000,-500.0,0.00016438,2]
[421657200,1778033443000,-790.35,0.00016438,2]
[421657206,1778033443000,-500.0,0.00016438,2]
[421657217,1778033443000,-151.0,0.00016438,2]
[421657172,1778033443000,-221.0,0.00015476,2]
[421657193,1778033443000,-366.53815918,0.00016256,2]
[421657175,1778033443000,-834.32,0.00015527,2]
[421657146,1778033443000,-151.0,0.00015,2]
[421657176,1778033443000,-250.0,0.00015616,2]
[421657153,1778033443000,-3102.0,0.00015047,2]
[421657152,1778033443000,-233.097666,0.00015,2]
[421657154,1778033443000,-165.81,0.00015067,2]
[421657150,1778033443000,-151.0,0.00015,2]
[421657149,1778033443000,-151.0,0.00015,2]
[421657151,1778033443000,-151.0,0.00015,2]
[421657216,1778033443000,-151.0,0.00016438,2]
[421657147,1778033443000,-151.0,0.00015,2]
[421657148,1778033443000,-151.0,0.00015,2]
[421657156,1778033443000,-151.0,0.00015068,2]
[421657155,1778033443000,-151.0,0.00015068,2]
[421657166,1778033443000,-1113.19274572,0.00015373,2]
[421657159,1778033443000,-290.497629,0.00015068,2]
[421657167,1778033443000,-3102.0,0.00015405,2]
[421657157,1778033443000,-151.0,0.00015068,2]
[421657158,1778033443000,-151.0,0.00015068,2]
[421657162,1778033443000,-2898.73555969,0.00015197,2]
[421657160,1778033443000,-150.0,0.00015068,2]
[421657161,1778033443000,-158.0,0.00015111,2]
[421657164,1778033443000,-413.65,0.000153,2]
[421657165,1778033443000,-2000.0,0.00015335,2]
[421657163,1778033443000,-505.18767132,0.00015265,2]
[421657168,1778033443000,-2351.0,0.00015411,2]
[421657169,1778033443000,-8128.0025126,0.00015467,2]
[421657170,1778033443000,-221.0,0.00015476,2]
[421657171,1778033443000,-187.0,0.00015476,2]
[421657177,1778033443000,-10598.58992052,0.00015643,2]
[421657179,1778033443000,-150.0,0.00015734,2]
[421657174,1778033443000,-362.0,0.00015476,2]
[421657173,1778033443000,-259.0,0.00015476,2]
[421657205,1778033443000,-503.04106779,0.00016438,2]
[421657266,1778033443000,-221.0,0.00016476,2]
[421657209,1778033443000,-529.61366875,0.00016438,2]
[421657249,1778033443000,-501.53082695,0.00016438,2]
[421657247,1778033443000,-163.68234244,0.00016438,2]
[421657250,1778033443000,-163.16558903,0.00016438,2]
[421657252,1778033443000,-500.0,0.00016438,2]
[421657248,1778033443000,-500.0,0.00016438,2]
[421657260,1778033443000,-500.0,0.00016438,2]
[421657258,1778033443000,-504.53419533,0.00016438,2]
[421657259,1778033443000,-500.0,0.00016438,2]
[421657254,1778033443000,-500.0,0.00016438,2]
[421657257,1778033443000,-500.0,0.00016438,2]
[421657255,1778033443000,-366.59660479,0.00016438,2]
[421657256,1778033443000,-500.43861517,0.00016438,2]
[421657251,1778033443000,-500.0,0.00016438,2]
[421657253,1778033443000,-500.0,0.00016438,2]
[421657262,1778033443000,-500.0,0.00016438,2]
[421657274,1778033443000,-199.32,0.00016712,2]
[421657273,1778033443000,-541.41544194,0.00016637,2]
[421657272,1778033443000,-744.82,0.000166,2]
[421657261,1778033443000,-500.0,0.00016438,2]
[421657263,1778033443000,-409.67569187,0.00016438,2]
[421657268,1778033443000,-362.0,0.00016476,2]
[421657265,1778033443000,-187.0,0.00016476,2]
[421657270,1778033443000,-165.81,0.00016501,2]
[421657264,1778033443000,-221.0,0.00016476,2]
[421657267,1778033443000,-259.0,0.00016476,2]
[421657269,1778033443000,-155.0,0.00016499,2]
[421657275,1778033443000,-450.0,0.00016712,2]
[421657276,1778033443000,-8128.0025126,0.00016729,2]
[421657207,1778033443000,-339.1872416,0.00016438,2]
[421657241,1778033443000,-500.0,0.00016438,2]
[421657244,1778033443000,-313.910179,0.00016438,2]
[421657271,1778033443000,-152.0,0.00016518,4]
[421657238,1778033443000,-151.0,0.00016438,2]
[421657239,1778033443000,-151.0,0.00016438,2]
[421657210,1778033443000,-500.0,0.00016438,2]
[421657214,1778033443000,-162.59148893,0.00016438,2]
[421657213,1778033443000,-500.0,0.00016438,2]
[421657211,1778033443000,-211.89209251,0.00016438,2]
[421657215,1778033443000,-394.82410018,0.00016438,2]
[421657218,1778033443000,-153.80298,0.00016438,2]
[421657223,1778033443000,-720.262877,0.00016438,2]
[421657224,1778033443000,-720.262877,0.00016438,2]
[421657221,1778033443000,-720.262877,0.00016438,2]
[421657227,1778033443000,-720.262877,0.00016438,2]
[421657232,1778033443000,-720.262877,0.00016438,2]
[421657226,1778033443000,-720.262877,0.00016438,2]
[421657219,1778033443000,-500.0,0.00016438,2]
[421657212,1778033443000,-164.22619886,0.00016438,2]
[421657229,1778033443000,-720.262877,0.00016438,2]
[421657228,1778033443000,-720.262877,0.00016438,2]
[421657243,1778033443000,-500.0,0.00016438,2]
[421657234,1778033443000,-554.66996267,0.00016438,2]
[421657237,1778033443000,-151.0,0.00016438,2]
[421657236,1778033443000,-500.0,0.00016438,2]
[421657245,1778033443000,-500.0,0.00016438,2]
[421657240,1778033443000,-500.0,0.00016438,2]
[421657235,1778033443000,-500.0,0.00016438,2]
[421657225,1778033443000,-720.262877,0.00016438,2]
[421657246,1778033443000,-500.0,0.00016438,2]
[421657231,1778033443000,-720.262877,0.00016438,2]
[421657242,1778033443000,-500.0,0.00016438,2]
[421657230,1778033443000,-720.262877,0.00016438,2]
[421657233,1778033443000,-720.262877,0.00016438,2]
[421657340,1778033444000,-151.0,0.00017,2]
[421657316,1778033444000,-565.62994908,0.00016986,2]
[421657327,1778033444000,-675.23604974,0.00016999,2]
[421657322,1778033444000,-1003.07944368,0.00016986,2]
[421657329,1778033444000,-151023.20948471,0.00017,2]
[421657336,1778033444000,-161.76,0.00017,2]
[421657333,1778033444000,-16599.81090034,0.00017,2]
[421657342,1778033444000,-151.0,0.00017,2]
[421657344,1778033444000,-410.130107,0.00017,2]
[421657355,1778033444000,-720.262877,0.00017,2]
[421657318,1778033444000,-1004.32156241,0.00016986,2]
[421657331,1778033444000,-113128.27671008,0.00017,2]
[421657364,1778033444000,-504.444282,0.00017,2]
[421657350,1778033444000,-151.0,0.00017,2]
[421657338,1778033444000,-152.395183,0.00017,2]
[421657346,1778033444000,-410.130107,0.00017,2]
[421657352,1778033444000,-410.130107,0.00017,2]
[421657357,1778033444000,-720.262877,0.00017,2]
[421657371,1778033444000,-531.418983,0.00017,2]
[421657365,1778033444000,-504.444282,0.00017,2]
[421657361,1778033444000,-151.0,0.00017,2]
[421657370,1778033444000,-531.418983,0.00017,2]
[421657360,1778033444000,-720.262877,0.00017,2]
[421657325,1778033444000,-308.55735666,0.00016999,2]
[421657366,1778033444000,-504.444282,0.00017,2]
[421657348,1778033444000,-410.130107,0.00017,2]
[421657320,1778033444000,-1117.53083552,0.00016986,2]
[421657290,1778033444000,-766.42253378,0.00016986,2]
[421657309,1778033444000,-1000.0,0.00016986,2]
[421657363,1778033444000,-504.444282,0.00017,2]
[421657278,1778033444000,-152.0,0.00016897,5]
[421657279,1778033444000,-2400.0,0.000169,6]
[421657277,1778033444000,-150.0,0.00016734,2]
[421657281,1778033444000,-150.0,0.00016963,2]
[421657280,1778033444000,-3292.0,0.00016952,2]
[421657283,1778033444000,-666.0,0.00016985,2]
[421657282,1778033444000,-300.0,0.00016985,2]
[421657285,1778033444000,-632.20967093,0.00016986,2]
[421657287,1778033444000,-408.20814367,0.00016986,2]
[421657284,1778033444000,-500.0,0.00016986,2]
[421657286,1778033444000,-1004.22534813,0.00016986,2]
[421657288,1778033444000,-389.18946307,0.00016986,2]
[421657301,1778033444000,-195.85164586,0.00016986,2]
[421657303,1778033444000,-671.63544967,0.00016986,2]
[421657289,1778033444000,-218.0988052,0.00016986,2]
[421657305,1778033444000,-1000.0,0.00016986,2]
[421657293,1778033444000,-1002.10973809,0.00016986,2]
[421657297,1778033444000,-1001.25123235,0.00016986,2]
[421657294,1778033444000,-1001.56593355,0.00016986,2]
[421657291,1778033444000,-1007.20784713,0.00016986,2]
[421657292,1778033444000,-1001.50869273,0.00016986,2]
[421657299,1778033444000,-1001.44323485,0.00016986,2]
[421657307,1778033444000,-818.00937475,0.00016986,2]
[421657311,1778033444000,-1009.80021898,0.00016986,2]
[421657313,1778033444000,-1000.0,0.00016986,2]
[421657358,1778033444000,-720.262877,0.00017,2]
[421657367,1778033444000,-151.0,0.00017,2]
[421657362,1778033444000,-151.0,0.00017,2]
[421657397,1778033444000,-1350.0,0.00017234,2]
[421657399,1778033444000,-1350.0,0.00017234,2]
[421657403,1778033444000,-1350.0,0.00017234,2]
[421657413,1778033444000,-221.0,0.00017476,2]
[421657402,1778033444000,-1350.0,0.00017234,2]
[421657406,1778033444000,-152.0,0.00017277,6]
[421657405,1778033444000,-265.96198961,0.0001726,2]
[421657404,1778033444000,-1033.0,0.00017234,2]
[421657408,1778033444000,-887.0,0.0001729,2]
[421657412,1778033444000,-187.0,0.00017476,2]
[421657407,1778033444000,-801.0,0.0001729,2]
[421657410,1778033444000,-908.2,0.00017458,2]
[421657411,1778033444000,-221.0,0.00017476,2]
[421657414,1778033444000,-259.0,0.00017476,2]
[421657418,1778033444000,-531.418983,0.00017534,2]
[421657417,1778033444000,-531.418983,0.00017534,2]
[421657419,1778033444000,-531.418985,0.00017534,2]
[421657415,1778033444000,-362.0,0.00017476,2]
[421657416,1778033444000,-531.418983,0.00017534,2]
[421657421,1778033444000,-1500.0,0.00017534,2]
[421657422,1778033444000,-1500.0,0.00017534,2]
[421657423,1778033444000,-1500.0,0.00017534,2]
[421657424,1778033444000,-2000.0,0.00017558,2]
[421657369,1778033444000,-531.418983,0.00017,2]
[421657420,1778033444000,-151.0,0.00017534,2]
[421657395,1778033444000,-1350.0,0.00017234,2]
[421657400,1778033444000,-1350.0,0.00017234,2]
[421657409,1778033444000,-10598.58992052,0.00017365,2]
[421657398,1778033444000,-1350.0,0.00017234,2]
[421657368,1778033444000,-531.418983,0.00017,2]
[421657392,1778033444000,-600.0,0.00017234,2]
[421657373,1778033444000,-151.0,0.00017,2]
[421657372,1778033444000,-151.0,0.00017,2]
[421657375,1778033444000,-151.0,0.00017,2]
[421657374,1778033444000,-151.0,0.00017,2]
[421657376,1778033444000,-834.32,0.0001708,2]
[421657379,1778033444000,-1171.0,0.00017234,2]
[421657377,1778033444000,-165.81,0.00017219,2]
[421657380,1778033444000,-800.0,0.00017234,2]
[421657381,1778033444000,-800.0,0.00017234,2]
[421657388,1778033444000,-600.0,0.00017234,2]
[421657390,1778033444000,-600.0,0.00017234,2]
[421657378,1778033444000,-2000.0,0.00017234,2]
[421657396,1778033444000,-1350.0,0.00017234,2]
[421657383,1778033444000,-800.0,0.00017234,2]
[421657394,1778033444000,-536.0,0.00017234,2]
[421657393,1778033444000,-600.0,0.00017234,2]
[421657382,1778033444000,-800.0,0.00017234,2]
[421657389,1778033444000,-600.0,0.00017234,2]
[421657391,1778033444000,-600.0,0.00017234,2]
[421657387,1778033444000,-600.0,0.00017234,2]
[421657384,1778033444000,-800.0,0.00017234,2]
[421657386,1778033444000,-1934.0,0.00017234,2]
[421657385,1778033444000,-682.0,0.00017234,2]
[421657401,1778033444000,-1350.0,0.00017234,2]
[421657466,1778033445000,-529.49570264,0.00017831,2]
[421657462,1778033445000,-410.130114,0.000178,2]
[421657467,1778033445000,-151.0,0.00017831,2]
[421657463,1778033445000,-529.49570264,0.0001781,2]
[421657464,1778033445000,-529.49570264,0.00017828,2]
[421657457,1778033445000,-529.49570264,0.000178,2]
[421657455,1778033445000,-504.444283,0.00017777,2]
[421657456,1778033445000,-529.49570264,0.00017799,2]
[421657458,1778033445000,-410.130107,0.000178,2]
[421657461,1778033445000,-151.0,0.000178,2]
[421657460,1778033445000,-410.130107,0.000178,2]
[421657465,1778033445000,-150.0,0.00017828,2]
[421657475,1778033445000,-729.06663344,0.00017882,2]
[421657471,1778033445000,-16447.83557508,0.00017834,2]
[421657468,1778033445000,-151.0,0.00017831,2]
[421657470,1778033445000,-502.63980569,0.00017834,2]
[421657481,1778033445000,-150.0,0.000179,2]
[421657483,1778033445000,-150.0,0.000179,2]
[421657482,1778033445000,-150.0,0.000179,2]
[421657472,1778033445000,-529.49570264,0.00017839,2]
[421657474,1778033445000,-193.96,0.00017878,2]
[421657478,1778033445000,-150.0,0.000179,2]
[421657477,1778033445000,-150.0,0.000179,2]
[421657480,1778033445000,-150.0,0.000179,2]
[421657453,1778033445000,-504.444282,0.00017777,2]
[421657469,1778033445000,-529.49570264,0.00017832,2]
[421657454,1778033445000,-504.444282,0.00017777,2]
[421657434,1778033445000,-150.0,0.00017714,2]
[421657452,1778033445000,-504.444282,0.00017777,2]
[421657476,1778033445000,-150.0,0.000179,2]
[421657426,1778033445000,-1221.0,0.00017623,2]
[421657428,1778033445000,-594.41,0.00017688,2]
[421657436,1778033445000,-150.0,0.00017714,2]
[421657425,1778033445000,-492.83,0.00017572,2]
[421657427,1778033445000,-152.0,0.00017656,7]
[421657429,1778033445000,-3625.0,0.00017699,2]
[421657431,1778033445000,-150.0,0.00017714,2]
[421657432,1778033445000,-150.0,0.00017714,2]
[421657433,1778033445000,-150.0,0.00017714,2]
[421657430,1778033445000,-6043.0,0.00017699,2]
[421657437,1778033445000,-224.0,0.00017714,2]
[421657450,1778033445000,-151.0,0.00017777,2]
[421657438,1778033445000,-295.0,0.0001772,2]
[421657442,1778033445000,-529.49570264,0.00017771,2]
[421657439,1778033445000,-237.0,0.00017723,2]
[421657441,1778033445000,-150.0,0.00017734,2]
[421657443,1778033445000,-8128.0025126,0.00017772,2]
[421657445,1778033445000,-720.262877,0.00017773,2]
[421657447,1778033445000,-720.262877,0.00017773,2]
[421657444,1778033445000,-529.49570264,0.00017773,2]
[421657446,1778033445000,-720.262877,0.00017773,2]
[421657448,1778033445000,-720.26287706,0.00017773,2]
[421657459,1778033445000,-410.130107,0.000178,2]
[421657449,1778033445000,-162.181281,0.00017773,2]
[421657451,1778033445000,-151.0,0.00017777,2]
[421657440,1778033445000,-197.0,0.00017723,2]
[421657473,1778033445000,-729.06663344,0.00017873,2]
[421657435,1778033445000,-150.0,0.00017714,2]
[421657488,1778033445000,-624.0,0.000179,2]
[421657516,1778033445000,-2000.0,0.0001814,2]
[421657518,1778033445000,-801.0,0.0001829,2]
[421657517,1778033445000,-157.15245404,0.00018248,2]
[421657519,1778033445000,-887.0,0.0001829,2]